Workbook

Sheet Diverse
B1: LAGERLISTE
B2: SAMLET LAGERVÆRDI: | C2: LAGERVARER: | D2: ANTAL BEHOLDERE: | E2: LAGERPLUKLISTE | F2: SØG I BEHOLDERE
B3: =SUM(LagerListe3[LAGERVÆRDI]) -> 4649 | C3: =COUNTA(LagerListe3[BESKRIVELSE]) -> 11 | D3: =SUMPRODUCT((1/COUNTIF(LagerListe3[BEHOLDERNUMMER],LagerListe3[BEHOLDERNUMMER]&""))) -> 6
B4: VARENUMMER | C4: BESKRIVELSE | D4: BEHOLDERNUMMER | E4: PLACERING | F4: ENHED | G4: MÆNGDE | H4: ANTAL GENBESTILLINGER | I4: PRIS | J4: LAGERVÆRDI | K4: GENBESTILLING
B5: SP7875 | C5: Vare 1 | D5: T345 | E5: =IFERROR(VLOOKUP(LagerListe3[[#This Row],[BEHOLDERNUMMER]],SøgIBeholder[],3,FALSE),"") -> Række 2, plads 1 | F5: Hver | G5: 20 | H5: 10 | I5: 30 | J5: =LagerListe3[[#This Row],[MÆNGDE]]*LagerListe3[[#This Row],[PRIS]] -> 600 | K5: =IFERROR(IF(LagerListe3[[#This Row],[MÆNGDE]]<=LagerListe3[[#This Row],[ANTAL GENBESTILLINGER]],1,0),0) -> 0
B6: TR87680 | C6: Vare 2 | D6: T345 | E6: =IFERROR(VLOOKUP(LagerListe3[[#This Row],[BEHOLDERNUMMER]],SøgIBeholder[],3,FALSE),"") -> Række 2, plads 1 | F6: Hver | G6: 30 | H6: 15 | I6: 40 | J6: =LagerListe3[[#This Row],[MÆNGDE]]*LagerListe3[[#This Row],[PRIS]] -> 1200 | K6: =IFERROR(IF(LagerListe3[[#This Row],[MÆNGDE]]<=LagerListe3[[#This Row],[ANTAL GENBESTILLINGER]],1,0),0) -> 0
B7: MK676554 | C7: Vare 3 | D7: T5789 | E7: =IFERROR(VLOOKUP(LagerListe3[[#This Row],[BEHOLDERNUMMER]],SøgIBeholder[],3,FALSE),"") -> Række 1, plads 1 | F7: Hver | G7: 10 | H7: 5 | I7: 5 | J7: =LagerListe3[[#This Row],[MÆNGDE]]*LagerListe3[[#This Row],[PRIS]] -> 50 | K7: =IFERROR(IF(LagerListe3[[#This Row],[MÆNGDE]]<=LagerListe3[[#This Row],[ANTAL GENBESTILLINGER]],1,0),0) -> 0
B8: YE98767 | C8: Vare 4 | D8: T9876 | E8: =IFERROR(VLOOKUP(LagerListe3[[#This Row],[BEHOLDERNUMMER]],SøgIBeholder[],3,FALSE),"") -> Række 3, plads 2 | F8: Felt (10 ct) | G8: 40 | H8: 10 | I8: 15 | J8: =LagerListe3[[#This Row],[MÆNGDE]]*LagerListe3[[#This Row],[PRIS]] -> 600 | K8: =IFERROR(IF(LagerListe3[[#This Row],[MÆNGDE]]<=LagerListe3[[#This Row],[ANTAL GENBESTILLINGER]],1,0),0) -> 0
B9: XR23423 | C9: Vare 5 | D9: T098 | E9: =IFERROR(VLOOKUP(LagerListe3[[#This Row],[BEHOLDERNUMMER]],SøgIBeholder[],3,FALSE),"") -> Række 3, plads 1 | F9: Hver | G9: 12 | H9: 10 | I9: 26 | J9: =LagerListe3[[#This Row],[MÆNGDE]]*LagerListe3[[#This Row],[PRIS]] -> 312 | K9: =IFERROR(IF(LagerListe3[[#This Row],[MÆNGDE]]<=LagerListe3[[#This Row],[ANTAL GENBESTILLINGER]],1,0),0) -> 0
B10: PW98762 | C10: Vare 6 | D10: T345 | E10: =IFERROR(VLOOKUP(LagerListe3[[#This Row],[BEHOLDERNUMMER]],SøgIBeholder[],3,FALSE),"") -> Række 2, plads 1 | F10: Hver | G10: 7 | H10: 10 | I10: 50 | J10: =LagerListe3[[#This Row],[MÆNGDE]]*LagerListe3[[#This Row],[PRIS]] -> 350 | K10: =IFERROR(IF(LagerListe3[[#This Row],[MÆNGDE]]<=LagerListe3[[#This Row],[ANTAL GENBESTILLINGER]],1,0),0) -> 1
B11: BM87684 | C11: Vare 7 | D11: T349 | E11: =IFERROR(VLOOKUP(LagerListe3[[#This Row],[BEHOLDERNUMMER]],SøgIBeholder[],3,FALSE),"") -> Række 1, plads 2 | F11: Hver | G11: 10 | H11: 5 | I11: 10 | J11: =LagerListe3[[#This Row],[MÆNGDE]]*LagerListe3[[#This Row],[PRIS]] -> 100 | K11: =IFERROR(IF(LagerListe3[[#This Row],[MÆNGDE]]<=LagerListe3[[#This Row],[ANTAL GENBESTILLINGER]],1,0),0) -> 0
B12: BH67655 | C12: Vare 8 | D12: T5789 | E12: =IFERROR(VLOOKUP(LagerListe3[[#This Row],[BEHOLDERNUMMER]],SøgIBeholder[],3,FALSE),"") -> Række 1, plads 1 | F12: Hver | G12: 19 | H12: 10 | I12: 3 | J12: =LagerListe3[[#This Row],[MÆNGDE]]*LagerListe3[[#This Row],[PRIS]] -> 57 | K12: =IFERROR(IF(LagerListe3[[#This Row],[MÆNGDE]]<=LagerListe3[[#This Row],[ANTAL GENBESTILLINGER]],1,0),0) -> 0
B13: WT98768 | C13: Vare 9 | D13: T9875 | E13: =IFERROR(VLOOKUP(LagerListe3[[#This Row],[BEHOLDERNUMMER]],SøgIBeholder[],3,FALSE),"") -> Række 2, plads 2 | F13: Pakke (5 ct) | G13: 20 | H13: 30 | I13: 14 | J13: =LagerListe3[[#This Row],[MÆNGDE]]*LagerListe3[[#This Row],[PRIS]] -> 280 | K13: =IFERROR(IF(LagerListe3[[#This Row],[MÆNGDE]]<=LagerListe3[[#This Row],[ANTAL GENBESTILLINGER]],1,0),0) -> 1
B14: TS3456 | C14: Vare 10 | D14: T349 | E14: =IFERROR(VLOOKUP(LagerListe3[[#This Row],[BEHOLDERNUMMER]],SøgIBeholder[],3,FALSE),"") -> Række 1, plads 2 | F14: Hver | G14: 15 | H14: 8 | I14: 60 | J14: =LagerListe3[[#This Row],[MÆNGDE]]*LagerListe3[[#This Row],[PRIS]] -> 900 | K14: =IFERROR(IF(LagerListe3[[#This Row],[MÆNGDE]]<=LagerListe3[[#This Row],[ANTAL GENBESTILLINGER]],1,0),0) -> 0
B15: WDG123 | C15: Vare 11 | D15: T349 | E15: =IFERROR(VLOOKUP(LagerListe3[[#This Row],[BEHOLDERNUMMER]],SøgIBeholder[],3,FALSE),"") -> Række 1, plads 2 | F15: Hver | G15: 25 | H15: 15 | I15: 8 | J15: =LagerListe3[[#This Row],[MÆNGDE]]*LagerListe3[[#This Row],[PRIS]] -> 200 | K15: =IFERROR(IF(LagerListe3[[#This Row],[MÆNGDE]]<=LagerListe3[[#This Row],[ANTAL GENBESTILLINGER]],1,0),0) -> 0

Sheet Lager
B1: LAGERLISTE - Butikken
B2: SAMLET LAGERVÆRDI: | C2: LAGERVARER: | D2: ANTAL BEHOLDERE: | E2: LAGERPLUKLISTE | F2: SØG I BEHOLDERE
B3: =SUM(LagerListe[LAGERVÆRDI]) -> 5877.88 | C3: =COUNTA(LagerListe[BESKRIVELSE]) -> 0 | D3: =SUMPRODUCT((1/COUNTIF(LagerListe[BEHOLDERNUMMER],LagerListe[BEHOLDERNUMMER]&""))) -> 2
B4: VARENUMMER | C4: BESKRIVELSE | D4: BEHOLDERNUMMER | E4: PLACERING | F4: ENHED | G4: MÆNGDE | H4: ANTAL GENBESTILLINGER | I4: PRIS | J4: LAGERVÆRDI | K4: GENBESTILLING
B5: Cuba Caramel | E5: =IFERROR(VLOOKUP(LagerListe[[#This Row],[BEHOLDERNUMMER]],SøgIBeholder[],3,FALSE),"") ->  | F5: 0.7 | G5: 14 | H5: 12 | I5: 80 | J5: =LagerListe[[#This Row],[MÆNGDE]]*LagerListe[[#This Row],[PRIS]] -> 1120 | K5: =IFERROR(IF(LagerListe[[#This Row],[MÆNGDE]]<=LagerListe[[#This Row],[ANTAL GENBESTILLINGER]],1,0),0) -> 0
B6: Smirnoff | D6: T345 | E6: =IFERROR(VLOOKUP(LagerListe[[#This Row],[BEHOLDERNUMMER]],SøgIBeholder[],3,FALSE),"") -> Række 2, plads 1 | F6: 0.7 | G6: 3 | H6: 12 | I6: 90 | J6: =LagerListe[[#This Row],[MÆNGDE]]*LagerListe[[#This Row],[PRIS]] -> 270 | K6: =IFERROR(IF(LagerListe[[#This Row],[MÆNGDE]]<=LagerListe[[#This Row],[ANTAL GENBESTILLINGER]],1,0),0) -> 1
B7: Gin | E7: Under rack | F7: 0.7 | G7: 5 | H7: 12 | I7: 89 | J7: =LagerListe[[#This Row],[MÆNGDE]]*LagerListe[[#This Row],[PRIS]] -> 445 | K7: =IFERROR(IF(LagerListe[[#This Row],[MÆNGDE]]<=LagerListe[[#This Row],[ANTAL GENBESTILLINGER]],1,0),0) -> 1
B8: Lys Bacardi | E8: Under rack | F8: 0.7 | G8: 8 | H8: 12 | I8: 95 | J8: =LagerListe[[#This Row],[MÆNGDE]]*LagerListe[[#This Row],[PRIS]] -> 760 | K8: =IFERROR(IF(LagerListe[[#This Row],[MÆNGDE]]<=LagerListe[[#This Row],[ANTAL GENBESTILLINGER]],1,0),0) -> 1
B9: Tequila | E9: Under rack | F9: 0.7 | G9: 2 | H9: 12 | I9: 88 | J9: =LagerListe[[#This Row],[MÆNGDE]]*LagerListe[[#This Row],[PRIS]] -> 176 | K9: =IFERROR(IF(LagerListe[[#This Row],[MÆNGDE]]<=LagerListe[[#This Row],[ANTAL GENBESTILLINGER]],1,0),0) -> 1
B10: Malibu | E10: Under rack | F10: 0.7 | G10: 1 | H10: 12 | I10: 90 | J10: =LagerListe[[#This Row],[MÆNGDE]]*LagerListe[[#This Row],[PRIS]] -> 90 | K10: =IFERROR(IF(LagerListe[[#This Row],[MÆNGDE]]<=LagerListe[[#This Row],[ANTAL GENBESTILLINGER]],1,0),0) -> 1
B11: Sirup
B12: Sukkersirup | E12: Under rack | F12: 0.7 | G12: 6 | H12: 6 | I12: 55 | J12: =LagerListe[[#This Row],[MÆNGDE]]*LagerListe[[#This Row],[PRIS]] -> 330 | K12: =IFERROR(IF(LagerListe[[#This Row],[MÆNGDE]]<=LagerListe[[#This Row],[ANTAL GENBESTILLINGER]],1,0),0) -> 1
B13: Limesirup | E13: Under rack | F13: 0.7 | G13: 2 | H13: 12 | I13: 35 | J13: =LagerListe[[#This Row],[MÆNGDE]]*LagerListe[[#This Row],[PRIS]] -> 70 | K13: =IFERROR(IF(LagerListe[[#This Row],[MÆNGDE]]<=LagerListe[[#This Row],[ANTAL GENBESTILLINGER]],1,0),0) -> 1
B14: Mangosirup | E14: Under rack | F14: 0.7 | G14: 0 | H14: 12 | I14: 60 | J14: =LagerListe[[#This Row],[MÆNGDE]]*LagerListe[[#This Row],[PRIS]] -> 0 | K14: =IFERROR(IF(LagerListe[[#This Row],[MÆNGDE]]<=LagerListe[[#This Row],[ANTAL GENBESTILLINGER]],1,0),0) -> 1
B15: Mangosirup | E15: Under rack | F15: 0.5 | G15: 5 | H15: 0 | J15: =LagerListe[[#This Row],[MÆNGDE]]*LagerListe[[#This Row],[PRIS]] -> 0 | K15: =IFERROR(IF(LagerListe[[#This Row],[MÆNGDE]]<=LagerListe[[#This Row],[ANTAL GENBESTILLINGER]],1,0),0) -> 0
B16: Ferskensirup | E16: Under rack | F16: 0.7 | G16: 2 | H16: 6 | I16: 55 | J16: =LagerListe[[#This Row],[MÆNGDE]]*LagerListe[[#This Row],[PRIS]] -> 110 | K16: =IFERROR(IF(LagerListe[[#This Row],[MÆNGDE]]<=LagerListe[[#This Row],[ANTAL GENBESTILLINGER]],1,0),0) -> 1
B17: Grenadine | E17: Under rack | F17: 0.7 | G17: 1 | H17: 6 | I17: 60 | J17: =LagerListe[[#This Row],[MÆNGDE]]*LagerListe[[#This Row],[PRIS]] -> 60 | K17: =IFERROR(IF(LagerListe[[#This Row],[MÆNGDE]]<=LagerListe[[#This Row],[ANTAL GENBESTILLINGER]],1,0),0) -> 1
B18: Curacao | E18: Under rack | F18: 0.7 | G18: 4 | H18: 6 | I18: 55 | J18: =LagerListe[[#This Row],[MÆNGDE]]*LagerListe[[#This Row],[PRIS]] -> 220 | K18: =IFERROR(IF(LagerListe[[#This Row],[MÆNGDE]]<=LagerListe[[#This Row],[ANTAL GENBESTILLINGER]],1,0),0) -> 1
B19: Kokossirup | E19: Under rack | F19: 0.7 | G19: 3 | H19: 6 | I19: 55 | J19: =LagerListe[[#This Row],[MÆNGDE]]*LagerListe[[#This Row],[PRIS]] -> 165 | K19: =IFERROR(IF(LagerListe[[#This Row],[MÆNGDE]]<=LagerListe[[#This Row],[ANTAL GENBESTILLINGER]],1,0),0) -> 1
B20: Mixer
B21: Rød Sodavand | E21: I køleskab | F21: 0.33 | G21: 27 | H21: 48 | I21: 3.92 | J21: =LagerListe[[#This Row],[MÆNGDE]]*LagerListe[[#This Row],[PRIS]] -> 105.84 | K21: =IFERROR(IF(LagerListe[[#This Row],[MÆNGDE]]<=LagerListe[[#This Row],[ANTAL GENBESTILLINGER]],1,0),0) -> 1
B22: Grøn Sodavand | E22: I køleskab | F22: 0.33 | G22: 38 | H22: 48 | I22: 3.92 | J22: =LagerListe[[#This Row],[MÆNGDE]]*LagerListe[[#This Row],[PRIS]] -> 148.96 | K22: =IFERROR(IF(LagerListe[[#This Row],[MÆNGDE]]<=LagerListe[[#This Row],[ANTAL GENBESTILLINGER]],1,0),0) -> 1
B23: Ananasjuice | E23: Hylde | F23: 1 | G23: 16 | H23: 12 | I23: 19 | J23: =LagerListe[[#This Row],[MÆNGDE]]*LagerListe[[#This Row],[PRIS]] -> 304 | K23: =IFERROR(IF(LagerListe[[#This Row],[MÆNGDE]]<=LagerListe[[#This Row],[ANTAL GENBESTILLINGER]],1,0),0) -> 0
B24: Appelsinjuice | E24: Hylde | F24: 1.5 | G24: 11 | H24: 12 | I24: 5 | J24: =LagerListe[[#This Row],[MÆNGDE]]*LagerListe[[#This Row],[PRIS]] -> 55 | K24: =IFERROR(IF(LagerListe[[#This Row],[MÆNGDE]]<=LagerListe[[#This Row],[ANTAL GENBESTILLINGER]],1,0),0) -> 1
B25: Appelsinjuice | E25: Hylde | F25: 1.75 | G25: 3 | H25: 0 | J25: =LagerListe[[#This Row],[MÆNGDE]]*LagerListe[[#This Row],[PRIS]] -> 0 | K25: =IFERROR(IF(LagerListe[[#This Row],[MÆNGDE]]<=LagerListe[[#This Row],[ANTAL GENBESTILLINGER]],1,0),0) -> 0
B26: Tranebærjuice | E26: Hylde | F26: 1 | G26: 7 | H26: 8 | I26: 16.5 | J26: =LagerListe[[#This Row],[MÆNGDE]]*LagerListe[[#This Row],[PRIS]] -> 115.5 | K26: =IFERROR(IF(LagerListe[[#This Row],[MÆNGDE]]<=LagerListe[[#This Row],[ANTAL GENBESTILLINGER]],1,0),0) -> 1
B27: Danskvand | E27: Hylde | F27: 2 | G27: 3 | H27: 8 | I27: 6 | J27: =LagerListe[[#This Row],[MÆNGDE]]*LagerListe[[#This Row],[PRIS]] -> 18 | K27: =IFERROR(IF(LagerListe[[#This Row],[MÆNGDE]]<=LagerListe[[#This Row],[ANTAL GENBESTILLINGER]],1,0),0) -> 1
B28: Danskvand | E28: Hylde | F28: 0.5 | G28: 0 | H28: 24 | I28: 3.85 | J28: =LagerListe[[#This Row],[MÆNGDE]]*LagerListe[[#This Row],[PRIS]] -> 0 | K28: =IFERROR(IF(LagerListe[[#This Row],[MÆNGDE]]<=LagerListe[[#This Row],[ANTAL GENBESTILLINGER]],1,0),0) -> 1
B29: Lemonsoda | E29: I køleskab | F29: 0.33 | G29: 15 | H29: 36 | I29: 4.5 | J29: =LagerListe[[#This Row],[MÆNGDE]]*LagerListe[[#This Row],[PRIS]] -> 67.5 | K29: =IFERROR(IF(LagerListe[[#This Row],[MÆNGDE]]<=LagerListe[[#This Row],[ANTAL GENBESTILLINGER]],1,0),0) -> 1
B30: Lemonsoda | E30: Hylde | F30: 1.5 | G30: 8 | H30: 12 | I30: 6 | J30: =LagerListe[[#This Row],[MÆNGDE]]*LagerListe[[#This Row],[PRIS]] -> 48 | K30: =IFERROR(IF(LagerListe[[#This Row],[MÆNGDE]]<=LagerListe[[#This Row],[ANTAL GENBESTILLINGER]],1,0),0) -> 1
B31: Faxe | E31: I køleskab | F31: 0.33 | G31: 28 | H31: 33 | I31: 4.13 | J31: =LagerListe[[#This Row],[MÆNGDE]]*LagerListe[[#This Row],[PRIS]] -> 115.64 | K31: =IFERROR(IF(LagerListe[[#This Row],[MÆNGDE]]<=LagerListe[[#This Row],[ANTAL GENBESTILLINGER]],1,0),0) -> 1
B32: Coca Cola | E32: I køleskab | F32: 0.33 | G32: ='FIFO-lagerstying'!G8 -> 88 | H32: 48 | I32: 4.13 | J32: =LagerListe[[#This Row],[MÆNGDE]]*LagerListe[[#This Row],[PRIS]] -> 363.44 | K32: =IFERROR(IF(LagerListe[[#This Row],[MÆNGDE]]<=LagerListe[[#This Row],[ANTAL GENBESTILLINGER]],1,0),0) -> 0
B33: Jordbærpuré | E33: Hylde | F33: 1 | G33: 8 | H33: 10 | I33: 90 | J33: =LagerListe[[#This Row],[MÆNGDE]]*LagerListe[[#This Row],[PRIS]] -> 720 | K33: =IFERROR(IF(LagerListe[[#This Row],[MÆNGDE]]<=LagerListe[[#This Row],[ANTAL GENBESTILLINGER]],1,0),0) -> 1

Sheet FIFO-lagerstying
B2: FIFO
B4: Dato | C4: Vare | D4: Stk pris | E4: Købt | F4: Solgt | G4: Difference
B5: 2017-01-01 | C5: Cuba Caramel | D5: 90 | E5: 12 | G5: =Tabel5[[#This Row],[Købt]]-F7 -> 11
B6: 2017-01-01 | C6: Vodka | D6: 90 | E6: 12 | G6: =Tabel5[[#This Row],[Købt]] -> 12
B7: 2017-01-01 | C7: Cuba Caramel | D7: 90 | F7: 1
B8: 2017-01-01 | C8: Coca Cola | D8: 3 | E8: 88 | G8: =Tabel5[[#This Row],[Købt]] -> 88
B9: 2017-02-02 | C9: Coca Cola
B10: 2017-02-03 | C10: Coca Cola

Sheet Lagerplukliste
B1: LAGERPLUKLISTE
C2: LAGERLISTE
B4: ORDRENUMMER | C4: VARENUMMER | D4: PLUKANTAL | E4: ANTAL TILGÆNGELIGE | F4: VAREBESKRIVELSE | G4: ENHED | H4: BEHOLDERNUMMER | I4: PLACERING
B5: 2022-07-05 | C5: =Lager!B6 -> Smirnoff | D5: 1 | E5: =IFERROR(VLOOKUP(LagerPlukListe[[#This Row],[VARENUMMER]],LagerListe[],6,FALSE),"") -> 3 | F5: =IFERROR(VLOOKUP(LagerPlukListe[[#This Row],[VARENUMMER]],LagerListe[],2,FALSE),"") -> 0 | G5: =IFERROR(VLOOKUP(LagerPlukListe[[#This Row],[VARENUMMER]],LagerListe[],5,FALSE),"") -> 0.7 | H5: =IFERROR(VLOOKUP(LagerPlukListe[[#This Row],[VARENUMMER]],LagerListe[],3,FALSE),"") -> T345 | I5: =IFERROR(VLOOKUP(LagerPlukListe[[#This Row],[VARENUMMER]],LagerListe[],4,FALSE),"") -> Række 2, plads 1
B6: 2022-07-05 | C6: =Lager!B7 -> Gin | E6: =IFERROR(VLOOKUP(LagerPlukListe[[#This Row],[VARENUMMER]],LagerListe[],6,FALSE),"") -> 5 | F6: =IFERROR(VLOOKUP(LagerPlukListe[[#This Row],[VARENUMMER]],LagerListe[],2,FALSE),"") -> 0 | G6: =IFERROR(VLOOKUP(LagerPlukListe[[#This Row],[VARENUMMER]],LagerListe[],5,FALSE),"") -> 0.7 | H6: =IFERROR(VLOOKUP(LagerPlukListe[[#This Row],[VARENUMMER]],LagerListe[],3,FALSE),"") -> 0 | I6: =IFERROR(VLOOKUP(LagerPlukListe[[#This Row],[VARENUMMER]],LagerListe[],4,FALSE),"") -> Under rack
E7: =IFERROR(VLOOKUP(LagerPlukListe[[#This Row],[VARENUMMER]],LagerListe[],6,FALSE),"") ->  | F7: =IFERROR(VLOOKUP(LagerPlukListe[[#This Row],[VARENUMMER]],LagerListe[],2,FALSE),"") ->  | G7: =IFERROR(VLOOKUP(LagerPlukListe[[#This Row],[VARENUMMER]],LagerListe[],5,FALSE),"") ->  | H7: =IFERROR(VLOOKUP(LagerPlukListe[[#This Row],[VARENUMMER]],LagerListe[],3,FALSE),"") ->  | I7: =IFERROR(VLOOKUP(LagerPlukListe[[#This Row],[VARENUMMER]],LagerListe[],4,FALSE),"") -> 
E8: =IFERROR(VLOOKUP(LagerPlukListe[[#This Row],[VARENUMMER]],LagerListe[],6,FALSE),"") ->  | F8: =IFERROR(VLOOKUP(LagerPlukListe[[#This Row],[VARENUMMER]],LagerListe[],2,FALSE),"") ->  | G8: =IFERROR(VLOOKUP(LagerPlukListe[[#This Row],[VARENUMMER]],LagerListe[],5,FALSE),"") ->  | H8: =IFERROR(VLOOKUP(LagerPlukListe[[#This Row],[VARENUMMER]],LagerListe[],3,FALSE),"") ->  | I8: =IFERROR(VLOOKUP(LagerPlukListe[[#This Row],[VARENUMMER]],LagerListe[],4,FALSE),"") -> 
E9: =IFERROR(VLOOKUP(LagerPlukListe[[#This Row],[VARENUMMER]],LagerListe[],6,FALSE),"") ->  | F9: =IFERROR(VLOOKUP(LagerPlukListe[[#This Row],[VARENUMMER]],LagerListe[],2,FALSE),"") ->  | G9: =IFERROR(VLOOKUP(LagerPlukListe[[#This Row],[VARENUMMER]],LagerListe[],5,FALSE),"") ->  | H9: =IFERROR(VLOOKUP(LagerPlukListe[[#This Row],[VARENUMMER]],LagerListe[],3,FALSE),"") ->  | I9: =IFERROR(VLOOKUP(LagerPlukListe[[#This Row],[VARENUMMER]],LagerListe[],4,FALSE),"") -> 
E10: =IFERROR(VLOOKUP(LagerPlukListe[[#This Row],[VARENUMMER]],LagerListe[],6,FALSE),"") ->  | F10: =IFERROR(VLOOKUP(LagerPlukListe[[#This Row],[VARENUMMER]],LagerListe[],2,FALSE),"") ->  | G10: =IFERROR(VLOOKUP(LagerPlukListe[[#This Row],[VARENUMMER]],LagerListe[],5,FALSE),"") ->  | H10: =IFERROR(VLOOKUP(LagerPlukListe[[#This Row],[VARENUMMER]],LagerListe[],3,FALSE),"") ->  | I10: =IFERROR(VLOOKUP(LagerPlukListe[[#This Row],[VARENUMMER]],LagerListe[],4,FALSE),"") -> 
E11: =IFERROR(VLOOKUP(LagerPlukListe[[#This Row],[VARENUMMER]],LagerListe[],6,FALSE),"") ->  | F11: =IFERROR(VLOOKUP(LagerPlukListe[[#This Row],[VARENUMMER]],LagerListe[],2,FALSE),"") ->  | G11: =IFERROR(VLOOKUP(LagerPlukListe[[#This Row],[VARENUMMER]],LagerListe[],5,FALSE),"") ->  | H11: =IFERROR(VLOOKUP(LagerPlukListe[[#This Row],[VARENUMMER]],LagerListe[],3,FALSE),"") ->  | I11: =IFERROR(VLOOKUP(LagerPlukListe[[#This Row],[VARENUMMER]],LagerListe[],4,FALSE),"") -> 
E12: =IFERROR(VLOOKUP(LagerPlukListe[[#This Row],[VARENUMMER]],LagerListe[],6,FALSE),"") ->  | F12: =IFERROR(VLOOKUP(LagerPlukListe[[#This Row],[VARENUMMER]],LagerListe[],2,FALSE),"") ->  | G12: =IFERROR(VLOOKUP(LagerPlukListe[[#This Row],[VARENUMMER]],LagerListe[],5,FALSE),"") ->  | H12: =IFERROR(VLOOKUP(LagerPlukListe[[#This Row],[VARENUMMER]],LagerListe[],3,FALSE),"") ->  | I12: =IFERROR(VLOOKUP(LagerPlukListe[[#This Row],[VARENUMMER]],LagerListe[],4,FALSE),"") -> 
E13: =IFERROR(VLOOKUP(LagerPlukListe[[#This Row],[VARENUMMER]],LagerListe[],6,FALSE),"") ->  | F13: =IFERROR(VLOOKUP(LagerPlukListe[[#This Row],[VARENUMMER]],LagerListe[],2,FALSE),"") ->  | G13: =IFERROR(VLOOKUP(LagerPlukListe[[#This Row],[VARENUMMER]],LagerListe[],5,FALSE),"") ->  | H13: =IFERROR(VLOOKUP(LagerPlukListe[[#This Row],[VARENUMMER]],LagerListe[],3,FALSE),"") ->  | I13: =IFERROR(VLOOKUP(LagerPlukListe[[#This Row],[VARENUMMER]],LagerListe[],4,FALSE),"") -> 

Sheet Søg i beholdere
B1: SØG I BEHOLDERE
B2: LAGERLISTE
B4: BEHOLDERNUMMER | C4: BESKRIVELSE | D4: PLACERING | E4: BREDDE | F4: HØJDE | G4: LÆNGDE
B5: T345 | C5: Stor beholder | D5: Række 2, plads 1 | E5: 50 | F5: 10 | G5: 10
B6: T5789 | C6: Lille beholder | D6: Række 1, plads 1 | E6: 25 | F6: 5 | G6: 5
B7: T9876 | C7: Stor beholder | D7: Række 3, plads 2 | E7: 50 | F7: 10 | G7: 10
B8: T098 | C8: Mellem beholder | D8: Række 3, plads 1 | E8: 30 | F8: 7 | G8: 10
B9: T349 | C9: Lille beholder | D9: Række 1, plads 2 | E9: 25 | F9: 5 | G9: 5
B10: T5789 | C10: Stor beholder | D10: Række 4, plads 5 | E10: 50 | F10: 10 | G10: 10
B11: T9875 | C11: Stor beholder | D11: Række 2, plads 2 | E11: 50 | F11: 10 | G11: 10
